bitfinex/quotes_BTCUSD_20251104
["timestamp","ask_amount","ask_price","bid_price","bid_amount"]
[1762237551441,0.00023728,105030.0,105020.0,0.15389]
[1762237551886,0.00023728,105030.0,105020.0,0.17293399]
[1762237552094,0.00023728,105030.0,105020.0,0.21170912]
[1762237552309,0.00023728,105030.0,105020.0,0.38310504]
[1762237552529,0.00023728,105030.0,105020.0,0.38410504]
[1762237552745,0.00023728,105030.0,105020.0,0.38310504]
[1762237552975,0.00023728,105030.0,105020.0,0.37310504]
[1762237553198,0.00023728,105030.0,105020.0,0.18466513]
[1762237553446,0.00023728,105030.0,105020.0,0.39832097]
[1762237553713,0.00023728,105030.0,105020.0,0.38110504]
[1762237553919,0.00023728,105030.0,105020.0,0.37510504]
[1762237554345,0.00023728,105030.0,105020.0,0.38310504]
[1762237555949,0.00023728,105030.0,105020.0,0.41928732]
[1762237556173,0.0004,105060.0,105030.0,0.00952108]
[1762237556387,0.00054509,105060.0,105050.0,0.1]
[1762237556807,0.00939665,105060.0,105050.0,0.18474]
[1762237557867,0.00939665,105060.0,105050.0,0.19074]
[1762237558136,0.00939665,105060.0,105050.0,0.214099]
[1762237558351,0.02029404,105060.0,105050.0,0.214099]
[1762237558569,3.65056916,105060.0,105050.0,0.006]
[1762237558775,3.64051916,105060.0,105050.0,0.007]
[1762237558988,3.65056916,105060.0,105050.0,0.007]
[1762237559208,3.66826312,105060.0,105050.0,0.007]
[1762237559427,3.76283918,105060.0,105050.0,0.001]
[1762237559641,0.19040365,105040.0,105030.0,0.19025]
[1762237559820,0.19040365,105040.0,105030.0,0.27499]
[1762237560036,0.19040096,105050.0,105030.0,0.33214]
[1762237560037,0.53038556,105050.0,105030.0,0.33214]
[1762237560252,0.0088479,105050.0,105040.0,0.01904036]
[1762237560467,0.63284441,105060.0,105040.0,0.06333904]
[1762237560692,3.0,105050.0,105040.0,0.00618904]
[1762237560912,3.0,105050.0,105040.0,0.09092904]
[1762237561128,3.0,105050.0,105040.0,0.14807904]
[1762237561345,3.0,105050.0,105040.0,0.19092904]
[1762237561579,0.19038553,105050.0,105040.0,0.19092904]
[1762237561786,0.19038553,105050.0,105040.0,0.18474]
[1762237562229,3.19138553,105050.0,105040.0,0.1]
[1762237562434,3.19138553,105050.0,105040.0,0.104]
[1762237562848,3.19138553,105050.0,105040.0,0.04685]
[1762237562849,3.21028564,105050.0,105040.0,0.04685]
[1762237563057,3.55028564,105050.0,105040.0,0.04685]
[1762237563713,3.54023564,105050.0,105040.0,0.04685]
[1762237564199,3.6549117,105050.0,105040.0,0.004]
[1762237564665,3.68354262,105050.0,105040.0,0.004]
[1762237564893,0.34,105040.0,105000.0,0.04295]
[1762237565108,3.63121316,105010.0,105000.0,0.0001]
[1762237566395,3.63321316,105010.0,105000.0,0.0021]
[1762237567053,0.342,105010.0,105000.0,0.14399]
[1762237567492,0.002,105010.0,105000.0,0.16303761]
[1762237567700,0.002,105010.0,105000.0,0.14399]
[1762237567910,3.19044092,105020.0,105000.0,0.1631]
[1762237568142,3.19044092,105020.0,105000.0,0.14399]
[1762237568143,3.0,105010.0,105000.0,0.14399]
[1762237568358,2.8035493,105010.0,105000.0,0.14199]
[1762237568587,3.0,105010.0,105000.0,0.14599]
[1762237568818,3.0,105020.0,105000.0,0.14499]
[1762237569041,0.19992496,105040.0,105010.0,0.1609358]
[1762237569250,0.19992496,105040.0,105030.0,0.05715]
[1762237569251,3.0,105040.0,105030.0,0.05715]
[1762237569483,3.0,105040.0,105030.0,0.1]
[1762237569690,3.0,105040.0,105030.0,0.04285]
[1762237570129,0.34,105040.0,105030.0,0.04285]
[1762237570822,0.53040365,105040.0,105030.0,0.04285]
[1762237571030,0.34,105040.0,105030.0,0.1]
[1762237571464,0.34,105040.0,105030.0,0.101]
[1762237571887,0.01493665,105050.0,105030.0,0.22335617]
[1762237572104,0.00014509,105050.0,105040.0,0.05715]
[1762237572319,3.19053062,105050.0,105040.0,0.05715]
[1762237572535,3.53053062,105050.0,105040.0,0.05715]
[1762237572750,3.0,105040.0,105030.0,0.148164]
[1762237572955,3.0,105040.0,105030.0,0.146164]
[1762237573172,3.0,105040.0,105030.0,0.203314]
[1762237573618,0.19040365,105040.0,105030.0,0.203314]
[1762237573836,3.0,105040.0,105030.0,0.203314]
[1762237574883,0.00014509,105050.0,105030.0,0.204314]
[1762237575097,0.00014509,105050.0,105040.0,0.16441036]
[1762237575317,0.00014509,105050.0,105040.0,0.16845344]
[1762237575541,0.00014509,105050.0,105040.0,0.1874938]
[1762237576612,0.00014509,105050.0,105040.0,0.1934938]
[1762237577028,0.00014509,105050.0,105040.0,0.17445344]
[1762237577726,0.00014509,105050.0,105040.0,0.17745344]
[1762237578825,0.00061955,105050.0,105040.0,0.1964938]
[1762237580525,0.00061955,105050.0,105040.0,0.17745344]
[1762237581194,0.00061955,105050.0,105040.0,0.1964938]
[1762237581428,0.00061955,105050.0,105040.0,0.17745344]
[1762237582288,0.00061955,105050.0,105040.0,0.15437]
[1762237582729,0.19100508,105050.0,105040.0,0.15437]
[1762237582946,3.18350289,105050.0,105040.0,0.009]
[1762237583569,3.52861289,105050.0,105040.0,0.009]
[1762237584035,0.53042178,105030.0,105020.0,0.04632]
[1762237584255,3.53042178,105030.0,105020.0,0.10603]
[1762237584466,3.53042178,105030.0,105020.0,0.19169]
[1762237584670,3.53042178,105030.0,105020.0,0.10603]
[1762237584877,0.19043991,105020.0,105010.0,0.04632]
[1762237585145,0.28625502,105020.0,105010.0,0.04632]
[1762237585596,0.28114502,105020.0,105010.0,0.10603]
[1762237586021,0.09070511,105020.0,105010.0,0.10603]
[1762237586243,0.28114502,105020.0,105010.0,0.10603]
[1762237586457,0.09070511,105020.0,105010.0,0.10603]
[1762237587486,0.09070511,105020.0,105010.0,0.19569]
[1762237587706,3.0,105020.0,105010.0,0.214869]
[1762237589191,0.34,105030.0,105010.0,0.214869]
[1762237589396,0.34,105030.0,105010.0,0.155159]
[1762237589397,0.53042178,105030.0,105010.0,0.155159]
[1762237589608,3.0,105020.0,105010.0,0.13598]
[1762237590028,3.0,105020.0,105010.0,0.10647]
[1762237590269,0.53042178,105030.0,105010.0,0.10681981]
[1762237590485,3.0,105020.0,105010.0,0.10647]
[1762237590710,3.0,105020.0,105010.0,0.19211]
[1762237590918,3.0,105020.0,105010.0,0.19111]
[1762237591123,3.0,105020.0,105010.0,0.19211]
[1762237591328,3.0,105020.0,105010.0,0.19511]
[1762237591751,3.0,105020.0,105010.0,0.214631]
[1762237591961,0.34,105030.0,105010.0,0.214631]
[1762237592181,0.34,105030.0,105020.0,0.14479]
[1762237592851,0.53042178,105030.0,105020.0,0.05915]
[1762237593269,0.53042178,105030.0,105010.0,0.154481]
[1762237593483,3.19043991,105020.0,105010.0,0.0617781]
[1762237593688,3.19043991,105020.0,105000.0,0.08574]
[1762237593689,3.19045805,105010.0,105000.0,0.08574]
[1762237593897,0.19045805,105010.0,105000.0,0.0001]
[1762237594133,0.19266805,105010.0,105000.0,0.0001]
[1762237594351,3.58248036,105010.0,105000.0,0.0001]
[1762237594546,3.53487805,105010.0,105000.0,0.0001]
[1762237594967,3.34221,105010.0,105000.0,0.00324509]
[1762237595177,0.28114632,105020.0,105000.0,0.14803509]
[1762237595388,3.0,105010.0,105000.0,0.14803509]
[1762237595608,3.0,105010.0,105000.0,0.1705496]
[1762237596009,3.0,105010.0,105000.0,0.19118447]
[1762237596215,3.0,105010.0,105000.0,0.18818447]
[1762237596422,2.80008691,105020.0,105000.0,0.18818447]
[1762237596630,3.0,105020.0,105010.0,0.09989]
[1762237597273,0.19043991,105020.0,105010.0,0.09989]
[1762237597472,0.19264991,105020.0,105010.0,0.04074]
[1762237597680,0.19045805,105010.0,105000.0,0.00024509]
[1762237597887,0.28116316,105010.0,105000.0,0.00024509]
[1762237598099,0.28337316,105010.0,105000.0,0.00024509]
[1762237598300,0.09291511,105010.0,105000.0,0.00024509]
[1762237598496,3.28337316,105010.0,105000.0,0.00024509]
[1762237599542,3.28337316,105010.0,105000.0,0.00324509]
[1762237599748,3.28337316,105010.0,105000.0,0.00824509]
[1762237599961,3.28337316,105010.0,105000.0,0.00524509]
[1762237600155,3.66082668,105010.0,105000.0,0.00624509]
[1762237600383,3.66082668,105010.0,105000.0,0.00124509]
[1762237600674,3.62337316,105010.0,105000.0,0.00424509]
[1762237601669,3.43291511,105010.0,105000.0,0.00424509]
[1762237601795,3.62337316,105010.0,105000.0,0.00424509]
[1762237601995,3.62337316,105010.0,105000.0,0.00583235]
[1762237604187,3.43291511,105010.0,105000.0,0.00583235]
[1762237604445,3.0,105010.0,105000.0,0.15062235]
[1762237604658,0.19994286,105030.0,105000.0,0.1894432]
[1762237604845,0.62114502,105020.0,105010.0,0.18582]
[1762237605067,0.62114502,105020.0,105010.0,0.1013]
[1762237605271,0.62165502,105020.0,105010.0,0.04425]
[1762237605483,0.19045805,105010.0,105000.0,0.08776509]
[1762237605690,3.19045805,105010.0,105000.0,0.00024509]
[1762237605891,3.19096805,105010.0,105000.0,0.00024509]
[1762237606101,3.53096805,105010.0,105000.0,0.14764509]
[1762237606300,0.62165502,105020.0,105000.0,0.37081192]
[1762237606301,3.0,105020.0,105000.0,0.37081192]
[1762237606506,3.0,105020.0,105010.0,0.18582]
[1762237606709,0.20285139,105050.0,105010.0,0.2048658]
[1762237606710,3.0,105040.0,105010.0,0.2048658]
[1762237606918,3.0,105040.0,105020.0,0.08452]
[1762237607119,0.19040365,105040.0,105030.0,0.05705]
[1762237607275,0.53040365,105040.0,105030.0,0.05705]
[1762237607476,0.19042178,105030.0,105010.0,0.12877]
[1762237607880,0.19042178,105030.0,105010.0,0.13777]
[1762237608696,0.5277386,105030.0,105020.0,0.05705]
[1762237609279,0.5277386,105030.0,105020.0,0.05605]
[1762237609280,0.33731682,105030.0,105020.0,0.05605]
[1762237609449,0.5277386,105030.0,105020.0,0.05605]
[1762237609889,3.19042178,105030.0,105020.0,0.14057]
[1762237610010,3.0,105030.0,105020.0,0.1631644]
[1762237610620,0.34,105030.0,105020.0,0.1641644]
[1762237611039,0.34,105030.0,105020.0,0.1456824]
[1762237611677,0.34,105030.0,105020.0,0.16472639]
[1762237612086,0.10565127,105040.0,105020.0,0.3551663]
[1762237612279,0.01494616,105040.0,105030.0,0.16061217]
[1762237612485,0.10256596,105060.0,105030.0,0.34151286]
[1762237612635,3.0,105050.0,105030.0,0.33199178]
[1762237612842,3.0,105050.0,105040.0,0.19040365]
[1762237612843,3.34,105050.0,105040.0,0.19040365]
[1762237613060,0.4575098,105060.0,105040.0,0.33197365]
[1762237613061,0.02680469,105060.0,105040.0,0.33197365]
[1762237613266,0.10256596,105060.0,105050.0,0.1013]
[1762237613477,3.10256596,105060.0,105050.0,0.1013]
[1762237613742,3.10607596,105060.0,105040.0,0.12877]
[1762237613912,3.0,105050.0,105040.0,0.12877]
[1762237614144,3.0,105050.0,105040.0,0.35741549]
[1762237614372,0.01186085,105060.0,105050.0,0.19038553]
[1762237614577,0.01186085,105060.0,105050.0,0.14157]
[1762237615217,0.01186085,105060.0,105050.0,0.33195553]
[1762237616568,0.01186085,105060.0,105050.0,0.33395553]
[1762237616569,0.00063718,105060.0,105050.0,0.33395553]
[1762237616779,0.00063718,105060.0,105050.0,0.44579286]
[1762237616985,0.00063718,105060.0,105050.0,0.45079286]
[1762237617407,0.00063718,105060.0,105050.0,0.44879286]
[1762237617618,3.0,105080.0,105060.0,0.19988577]
[1762237617822,0.01065412,105070.0,105060.0,0.14157]
[1762237618024,0.00013861,105080.0,105070.0,0.18582]
[1762237619416,0.00013861,105080.0,105070.0,0.18682]
[1762237619576,0.0109279,105080.0,105070.0,0.18682]
[1762237619795,0.00013861,105080.0,105070.0,0.18682]
[1762237619989,0.00013861,105080.0,105070.0,0.18982]
[1762237620188,0.00013861,105080.0,105070.0,0.21074955]
[1762237620420,0.09084372,105080.0,105070.0,0.1053]
[1762237621023,0.09235372,105080.0,105070.0,0.004]
[1762237621265,0.10334845,105080.0,105070.0,0.004]
[1762237621476,0.10183845,105080.0,105070.0,0.06105]
[1762237621676,0.10183845,105080.0,105070.0,0.14557]
[1762237621677,0.01113334,105080.0,105070.0,0.14557]
[1762237621903,0.01113334,105080.0,105070.0,0.06105]
[1762237622286,0.01113334,105080.0,105070.0,0.164552]
[1762237622445,0.01113334,105080.0,105070.0,0.35490129]
[1762237622648,0.01113334,105080.0,105070.0,0.164552]
[1762237623536,0.01113334,105080.0,105070.0,0.35490129]
[1762237623752,0.01113334,105080.0,105070.0,0.164552]
[1762237623954,0.0116076,105080.0,105070.0,0.164552]
[1762237626642,0.0116076,105080.0,105070.0,0.06105]
[1762237626854,0.10382271,105080.0,105070.0,0.004]
[1762237627281,0.63415388,105080.0,105070.0,0.004]
[1762237627499,3.63566388,105080.0,105070.0,0.004]
[1762237627918,3.65060431,105080.0,105070.0,0.004]
[1762237628160,3.75289252,105080.0,105070.0,0.004]
[1762237628621,3.75289252,105080.0,105070.0,0.001]
[1762237628835,3.0,105050.0,105040.0,0.12877]
[1762237629270,3.0,105050.0,105040.0,0.18582]
[1762237630152,3.0,105050.0,105040.0,0.04425]
[1762237630153,0.53189553,105050.0,105040.0,0.04425]
[1762237630359,3.62647159,105050.0,105030.0,0.00111226]
[1762237630568,0.09070511,105040.0,105020.0,0.02970074]
[1762237630832,0.35606,105050.0,105040.0,0.05705]
[1762237631048,0.35606,105070.0,105040.0,0.24945353]
[1762237631279,0.01606,105070.0,105060.0,0.05705]
[1762237631635,0.35606,105070.0,105060.0,0.14157]
[1762237631852,0.34,105070.0,105060.0,0.17919051]
[1762237632050,0.13270027,105080.0,105060.0,0.19822725]
[1762237632250,0.13270027,105080.0,105070.0,0.1013]
[1762237632607,0.47230021,105080.0,105070.0,0.1013]
[1762237632824,0.0415951,105080.0,105070.0,0.1013]
[1762237633039,0.0415951,105080.0,105070.0,0.19971205]
[1762237633252,0.57192627,105080.0,105070.0,0.1013]
[1762237633466,0.3815951,105080.0,105070.0,0.1013]
[1762237634102,0.3815951,105080.0,105070.0,0.18582]
[1762237634304,0.57192627,105080.0,105070.0,0.1013]
[1762237634685,0.3976551,105080.0,105070.0,0.04725]
[1762237634854,0.57192627,105080.0,105070.0,0.1043]
[1762237635106,0.58535627,105080.0,105070.0,0.04825]
[1762237636042,3.58535627,105080.0,105070.0,0.04825]
[1762237636612,3.58535627,105080.0,105070.0,0.004]
[1762237639589,3.58583053,105080.0,105070.0,0.004]
[1762237641750,3.59926053,105080.0,105070.0,0.004]
[1762237642154,3.61419269,105080.0,105070.0,0.004]
[1762237642402,3.62305499,105080.0,105070.0,0.004]
[1762237642839,3.62305499,105080.0,105070.0,0.003]
[1762237643281,3.70876875,105080.0,105070.0,0.003]
[1762237643505,3.0,105060.0,105050.0,0.1298]
[1762237643966,3.0,105070.0,105050.0,0.18613]
[1762237644219,3.0,105070.0,105060.0,0.05633]
[1762237644463,0.36665467,105080.0,105060.0,0.16091674]
[1762237644663,0.56585632,105080.0,105070.0,0.05633]
[1762237645301,0.37552434,105080.0,105070.0,0.05633]
[1762237645536,0.56585551,105080.0,105070.0,0.14188]
[1762237645823,0.56585551,105080.0,105060.0,0.005]
[1762237645824,0.57928551,105080.0,105060.0,0.005]
[1762237646118,0.2944844,105070.0,105060.0,0.005]
[1762237646586,0.10413511,105070.0,105050.0,0.1298]
[1762237646810,0.1903674,105060.0,105050.0,0.1298]
[1762237646998,3.0,105060.0,105050.0,0.161966]
[1762237647239,3.0,105060.0,105050.0,0.218296]
[1762237647423,3.1903674,105060.0,105050.0,0.218296]
[1762237647692,0.1903674,105060.0,105050.0,0.10358]
[1762237648112,0.1903674,105060.0,105050.0,0.18913]
[1762237648353,0.1903674,105060.0,105050.0,0.10058]
[1762237648576,0.5437974,105060.0,105050.0,0.005]
[1762237648783,0.5437974,105060.0,105050.0,0.007]
[1762237649902,0.5437974,105060.0,105050.0,0.002]
[1762237650098,0.5437974,105060.0,105050.0,0.005]
[1762237650332,0.5437974,105060.0,105050.0,0.003]
[1762237650724,0.35343,105060.0,105050.0,0.004]
[1762237650898,0.09094226,105070.0,105050.0,0.14588]
[1762237651083,0.62129158,105070.0,105060.0,0.05633]
[1762237651287,3.2037974,105060.0,105050.0,0.004]
[1762237651475,0.5437974,105060.0,105050.0,0.004]
[1762237651902,0.34,105060.0,105050.0,0.05933]
[1762237652281,0.34,105060.0,105050.0,0.14488]
[1762237652484,0.00123715,105070.0,105050.0,0.18285255]
[1762237652693,0.00123715,105070.0,105060.0,0.13705]
[1762237652900,0.34123715,105070.0,105060.0,0.13705]
[1762237653459,0.34023715,105070.0,105060.0,0.13705]
[1762237653744,0.34023715,105070.0,105060.0,0.15608674]
[1762237653745,0.00023715,105070.0,105060.0,0.15608674]
[1762237653928,0.00023715,105070.0,105060.0,0.17469042]
[1762237654125,0.00023715,105070.0,105060.0,0.13805]
[1762237654341,0.00023715,105070.0,105060.0,0.13905]
[1762237654673,0.00023715,105070.0,105060.0,0.14405]
[1762237655530,0.01516873,105070.0,105060.0,0.14405]
[1762237656794,0.20551802,105070.0,105060.0,0.14405]
[1762237656999,0.01516873,105070.0,105060.0,0.1750884]
[1762237657205,0.00023715,105070.0,105060.0,0.1750884]
[1762237660242,0.01516855,105070.0,105060.0,0.1750884]
[1762237661041,0.20551784,105070.0,105060.0,0.1750884]
[1762237661309,0.21549784,105070.0,105060.0,0.007]
[1762237661473,0.21549784,105070.0,105060.0,0.06386]
[1762237661675,0.20551784,105070.0,105060.0,0.06386]
[1762237662068,0.01516855,105070.0,105060.0,0.14405]
[1762237662358,0.01516855,105070.0,105060.0,0.17938514]
[1762237662579,0.01516855,105070.0,105060.0,0.1603484]
[1762237662842,0.01516855,105070.0,105060.0,0.17938514]
[1762237663076,0.01516855,105070.0,105060.0,0.1603484]
[1762237664478,3.35516855,105070.0,105060.0,0.06386]
[1762237664654,3.35516855,105070.0,105060.0,0.14405]
[1762237664655,0.35516855,105070.0,105060.0,0.14405]
[1762237665646,0.34023715,105070.0,105060.0,0.13905]
[1762237665844,0.34023715,105070.0,105060.0,0.14005]
[1762237666185,0.34023715,105070.0,105060.0,0.13805]
[1762237666414,0.34023715,105070.0,105060.0,0.150855]
[1762237666609,0.34023715,105070.0,105060.0,0.155855]
[1762237666821,0.34023715,105070.0,105060.0,0.157855]
[1762237667494,0.34023715,105070.0,105060.0,0.14405]
[1762237668962,0.01516928,105070.0,105060.0,0.16308674]
[1762237669598,0.00023715,105070.0,105060.0,0.16308674]
[1762237670145,0.00023715,105070.0,105060.0,0.35345414]
[1762237670359,0.00023715,105070.0,105060.0,0.3344174]
[1762237670558,0.00023715,105070.0,105060.0,0.3959678]
[1762237671232,0.00023715,105070.0,105060.0,0.2056004]
[1762237671439,0.00023715,105070.0,105060.0,0.3959678]
[1762237671640,0.00023715,105070.0,105060.0,0.3909678]
[1762237671861,0.00023715,105070.0,105060.0,0.4019678]
[1762237672493,0.00023715,105070.0,105060.0,0.3999678]
[1762237672942,0.00023715,105070.0,105060.0,0.4049678]
[1762237673780,3.557e-05,105070.0,105060.0,0.4049678]
[1762237673994,0.01422291,105090.0,105080.0,0.04274]
[1762237674213,0.01436846,105090.0,105080.0,0.0968]
[1762237674361,0.01436846,105090.0,105080.0,0.114987]
[1762237674579,0.01595459,105090.0,105080.0,0.200057]
[1762237674776,0.02779148,105090.0,105080.0,0.200057]
[1762237675145,0.02779148,105090.0,105080.0,0.205057]
[1762237676354,0.21810454,105090.0,105080.0,0.207057]
[1762237676646,3.65622965,105090.0,105080.0,0.007]
[1762237676849,0.64880965,105090.0,105080.0,0.06106]
[1762237677029,0.64880965,105090.0,105080.0,0.14613]
[1762237677237,0.36779148,105090.0,105080.0,0.14613]
[1762237677439,0.55810454,105090.0,105080.0,0.165017]
[1762237677643,0.02779148,105090.0,105080.0,0.18205011]
[1762237677826,0.01356857,105090.0,105080.0,0.17805011]
[1762237678226,0.00173168,105090.0,105080.0,0.36838128]
[1762237678431,0.00173168,105090.0,105080.0,0.159017]
[1762237678597,0.00173168,105090.0,105080.0,0.18205011]
[1762237680469,0.00173168,105090.0,105080.0,0.51978128]
[1762237680783,0.00173168,105090.0,105080.0,0.50074817]
[1762237681615,0.00173168,105090.0,105080.0,0.53693045]
[1762237681761,0.00173168,105090.0,105080.0,0.34659928]
[1762237681977,0.00173168,105090.0,105080.0,0.53693045]
[1762237682180,0.00173168,105090.0,105080.0,0.53293045]
[1762237682380,0.00173168,105090.0,105080.0,0.53193045]
[1762237682582,0.00173168,105090.0,105080.0,0.53593045]
[1762237682815,0.00173168,105090.0,105080.0,0.87693045]
[1762237683017,0.00173168,105090.0,105080.0,0.73853044]
[1762237683423,0.00173168,105090.0,105080.0,0.74153044]
[1762237683589,0.00173168,105090.0,105080.0,0.73753044]
[1762237684137,0.00173168,105090.0,105080.0,0.74553044]
[1762237685385,0.0002,105110.0,105090.0,0.22648088]
[1762237685585,0.00068507,105110.0,105100.0,0.0968]
[1762237685794,0.00068507,105110.0,105100.0,0.18187]
[1762237686606,0.00068507,105110.0,105100.0,0.37216495]
[1762237686809,0.00115913,105110.0,105100.0,0.18287]
[1762237687255,0.00115913,105110.0,105100.0,0.37316495]
[1762237687460,0.00115913,105110.0,105100.0,0.43471535]
[1762237687873,0.00115913,105110.0,105100.0,0.43871535]
[1762237688078,0.00115913,105110.0,105100.0,0.2484204]
[1762237688285,0.00115913,105110.0,105100.0,0.62229763]
[1762237688494,0.00115913,105110.0,105100.0,0.96229763]
[1762237688712,0.00115913,105110.0,105100.0,0.81489763]
[1762237689120,0.00115913,105110.0,105100.0,0.81389763]
[1762237689773,0.00115913,105110.0,105100.0,0.82389762]
[1762237690149,0.0004,105140.0,105130.0,0.56642293]
[1762237690373,0.0002,105150.0,105140.0,0.22640484]
[1762237690617,0.00034549,105150.0,105140.0,0.36553484]
[1762237691033,0.00129314,105150.0,105140.0,0.45623995]
[1762237691445,0.0004,105160.0,105150.0,0.22638674]
[1762237691722,0.0004,105160.0,105150.0,0.40825674]
[1762237691922,0.00063684,105160.0,105150.0,0.46237552]
[1762237692140,0.00063684,105160.0,105150.0,0.27217106]
[1762237692362,0.00063684,105160.0,105150.0,0.23598878]
[1762237692569,0.00063684,105160.0,105150.0,0.42619324]
[1762237692925,0.00063684,105160.0,105150.0,0.23898878]
[1762237693290,0.00063684,105160.0,105150.0,0.24898878]
[1762237693908,0.00063684,105160.0,105150.0,0.23898878]
[1762237694320,0.00063684,105160.0,105150.0,0.24698878]
[1762237694738,0.00063684,105160.0,105150.0,0.24398878]
[1762237695148,0.00063684,105160.0,105150.0,0.24598878]
[1762237695362,0.00063684,105160.0,105150.0,0.1068]
[1762237695817,0.00063684,105160.0,105150.0,0.19001]
[1762237696035,0.00063684,105160.0,105150.0,0.18201]
[1762237696241,0.19082322,105160.0,105150.0,0.18201]
[1762237696497,3.53082322,105160.0,105150.0,0.18401]
[1762237696749,3.53261322,105160.0,105150.0,0.04674]
[1762237696972,3.53082322,105160.0,105150.0,0.10121]
[1762237697199,3.53261322,105160.0,105150.0,0.04674]
[1762237697850,3.34242684,105160.0,105150.0,0.04674]
[1762237698088,3.34242684,105160.0,105150.0,0.10121]
[1762237698089,0.34063684,105160.0,105150.0,0.10121]
[1762237698299,0.53082322,105160.0,105150.0,0.18442]
[1762237698518,0.34063684,105160.0,105150.0,0.18442]
[1762237698983,0.34063684,105160.0,105150.0,0.20476423]
[1762237699439,0.00063684,105160.0,105150.0,0.20476423]
[1762237702020,0.41118171,105170.0,105150.0,0.20476423]
[1762237702245,3.0,105160.0,105150.0,0.15029423]
[1762237702667,3.0,105160.0,105150.0,0.20476423]
[1762237703138,3.0,105160.0,105150.0,0.20076423]
[1762237703343,0.19018638,105160.0,105150.0,0.20276423]
[1762237703577,0.60135088,105170.0,105150.0,0.18242]
[1762237703797,0.61198239,105170.0,105150.0,0.09721]
[1762237704024,0.53197638,105160.0,105150.0,0.04274]
[1762237704234,3.54260789,105160.0,105150.0,0.004]
[1762237704476,3.63539395,105160.0,105150.0,0.004]
[1762237704692,3.0,105140.0,105130.0,0.12595]
[1762237704918,3.19022256,105140.0,105130.0,0.12609549]
[1762237705135,0.53022256,105140.0,105130.0,0.09735549]
[1762237705340,0.53022256,105140.0,105130.0,0.18056549]
[1762237705761,3.53201256,105140.0,105130.0,0.04288549]
[1762237706195,3.53201256,105140.0,105130.0,0.00014549]
[1762237706404,3.54264812,105140.0,105130.0,0.00014549]
[1762237706612,3.54464812,105140.0,105130.0,0.00014549]
[1762237707039,0.53024065,105130.0,105120.0,0.00111101]
[1762237707254,3.72809268,105130.0,105120.0,0.00111101]
[1762237708115,3.72809268,105130.0,105070.0,0.12249]
[1762237708116,0.19033117,105080.0,105070.0,0.12249]
[1762237708322,0.09070511,105080.0,105070.0,0.12249]
[1762237708530,0.28103628,105080.0,105070.0,0.09375]
[1762237708741,0.28103628,105080.0,105070.0,0.17838246]
[1762237709343,0.28103628,105080.0,105070.0,0.17886753]
[1762237709344,0.10298755,105080.0,105070.0,0.17886753]
[1762237709551,0.29331872,105080.0,105070.0,0.17886753]
[1762237709758,0.29331872,105080.0,105070.0,0.17986753]
[1762237709900,3.63331872,105080.0,105070.0,0.17986753]
[1762237710130,3.63331872,105080.0,105070.0,0.18586753]
[1762237710525,3.63331872,105080.0,105070.0,0.10265753]
[1762237711146,3.63510872,105080.0,105070.0,0.00890753]
[1762237711472,3.63689872,105080.0,105070.0,0.00890753]
[1762237711804,3.673081,105080.0,105070.0,0.00890753]
[1762237712156,3.673081,105080.0,105070.0,0.00290753]
[1762237712374,3.76765706,105080.0,105070.0,0.00290753]
[1762237712715,3.76765706,105080.0,105070.0,0.00390753]
[1762237712716,3.673081,105080.0,105070.0,0.00390753]
[1762237712856,3.674081,105080.0,105070.0,0.00190753]
[1762237714434,3.70326599,105080.0,105070.0,0.00190753]
[1762237714579,3.674081,105080.0,105070.0,0.00190753]
[1762237715701,3.44577755,105080.0,105070.0,0.00190753]
[1762237715907,3.63431872,105080.0,105070.0,0.04118753]
[1762237716330,0.35328244,105080.0,105070.0,0.17886753]
[1762237716530,0.01328244,105080.0,105070.0,0.19675428]
[1762237716962,0.01328244,105080.0,105070.0,0.18086753]
[1762237717167,0.01228244,105080.0,105070.0,0.19990245]
[1762237717595,3.0,105090.0,105070.0,0.37121306]
[1762237717798,3.34,105090.0,105080.0,0.07393]
[1762237717952,3.0,105090.0,105080.0,0.12643]
[1762237718553,0.34,105090.0,105080.0,0.12643]
[1762237718765,0.35216913,105090.0,105080.0,0.12643]
[1762237719186,0.35316913,105090.0,105080.0,0.12643]
[1762237719599,0.35316913,105090.0,105080.0,0.14546311]
[1762237719796,0.01316913,105090.0,105080.0,0.14546311]
[1762237719996,0.01316913,105090.0,105080.0,0.18302058]
[1762237720207,0.01316913,105090.0,105080.0,0.14546311]
[1762237721121,0.20348219,105090.0,105080.0,0.14546311]
[1762237721324,0.01316913,105090.0,105080.0,0.14546311]
[1762237721734,0.01316913,105090.0,105080.0,0.12643]
[1762237721902,0.01316913,105090.0,105080.0,0.14546311]
[1762237722220,0.01316913,105090.0,105080.0,0.1920913]
[1762237722607,0.01316913,105090.0,105080.0,0.12643]
[1762237722762,0.20348219,105090.0,105080.0,0.0525]
[1762237722960,0.20348219,105090.0,105080.0,0.05372526]
[1762237723266,0.20348219,105090.0,105080.0,0.12765526]
[1762237723624,0.01316913,105090.0,105080.0,0.12769526]
[1762237723973,0.20348219,105090.0,105080.0,0.14448129]
[1762237724187,0.20348219,105090.0,105080.0,0.05384526]
[1762237724396,0.20348219,105090.0,105080.0,0.05388526]
[1762237724617,0.20348219,105090.0,105080.0,0.12785526]
[1762237724822,0.01316913,105090.0,105080.0,0.12785526]
[1762237725027,0.01316913,105090.0,105080.0,0.14461729]
[1762237725839,0.01316913,105090.0,105080.0,0.15698287]
[1762237726081,0.01316913,105090.0,105080.0,0.14461729]
[1762237726365,0.01316913,105090.0,105080.0,0.34742354]
[1762237726566,0.01316913,105090.0,105080.0,0.14461729]
[1762237726774,0.01316913,105090.0,105080.0,0.34667016]
[1762237726980,0.001,105090.0,105080.0,0.33494846]
[1762237727394,0.001,105090.0,105080.0,0.14461729]
[1762237727822,0.001,105090.0,105080.0,0.33494846]
[1762237728029,0.001,105090.0,105080.0,0.14461729]
[1762237728261,0.001,105090.0,105080.0,0.33494846]
[1762237729273,0.001,105090.0,105080.0,0.48234846]
[1762237729384,0.001,105090.0,105080.0,0.29201729]
[1762237729625,3.0,105100.0,105080.0,0.29201729]
[1762237729853,3.0,105100.0,105090.0,0.16563]
[1762237730053,3.0,105100.0,105090.0,0.3460332]
[1762237730259,3.1902905,105110.0,105090.0,0.3460332]
[1762237730462,3.0,105110.0,105100.0,0.0496]
[1762237730667,3.0,105110.0,105100.0,0.0476]